[Event "Satranc Arena IM Series-1 2024"]
[Site "Izmir"]
[Date "2024.03.21"]
[Round "8.1"]
[White "Aydin, Gulenay"]
[Black "Yermolinsky, Alex"]
[Result "0-1"]
[ECO "B06"]
[WhiteElo "2152"]
[BlackElo "2421"]
[Annotator "TA"]
[PlyCount "86"]
[EventDate "2024.03.18"]
[EventCountry "TUR"]
[SourceTitle "playchess.com"]
[Source "ChessBase"]
[SourceQuality "1"]
[TimeControl "5400+30"]

{[%evp 9,86,42,38,31,43,0,24,35,41,21,36,39,64,25,16,13,12,13,41,26,60,58,51,58,74,76,81,14,4,1,43,-75,-76,-284,-264,-482,-339,-491,-290,-350,-361,-320,-211,-217,-214,-262,-265,-268,-261,-259,-217,-188,-104,-208,-147,-200,-77,-200,-205,-266,-272,-308,-301,-293,-300,-295,-265,-419,-323,-653,-652,-691,-746,-746,-741,-1208,-1195,-29989,-29990]} 1. e4 {[%emt 0:00:03]} c5 {[%emt 0:00:13]} 2. c3 {[%emt 0:00:06]} d5 {[%emt 0:00:27]} 3. exd5 {[%emt 0:00:06]} Qxd5 {[%emt 0:00:03]} 4. d4 {[%emt 0:00:06]} g6 {[%emt 0:00:30]} 5. Nf3 {[%emt 0:00:06]} Bg7 {[%emt 0:00:12]} 6. Nbd2 {[%emt 0:00:13] Bc4 is the strong threat.} Nf6 {[%emt 0:07:38]} 7. Qb3 {[%emt 0:05:51] [#] Hoping for Bc4.} Qxb3 {[%emt 0:11:00]} 8. axb3 {[%emt 0:00:18] White has an edge.} cxd4 {[%emt 0:07:09]} 9. Nxd4 {[%emt 0:00:19]} O-O {[%emt 0:06:26]} 10. g3 {[%emt 0:19:10]} Nd5 {[%emt 0:03:26]} 11. Nb5 {[%emt 0:16:20][%cal Of1g2]} Nc6 {[%emt 0:02:05]} 12. Bg2 {[%emt 0:00:25]} Be6 {[%emt 0:03:02]} 13. O-O {[%emt 0:00:09]} a6 {[%emt 0:06:03]} 14. Na3 {[%emt 0:01:08]} Rad8 {[%emt 0:02:08]} 15. Ne4 {[%emt 0:02:25]} Bc8 {[%emt 0:02:26]} 16. Nc4 {[%emt 0:01:51]} h6 {[%emt 0:14:06]} 17. Nc5 {[%emt 0:03:08]} a5 {[%emt 0:03:15]} 18. Bxd5 {[%emt 0:15:30]} (18. Nxa5 Nxa5 19. Rxa5 b6 $17) ({Better is} 18. Be3 $16) 18... Rxd5 $11 {[%emt 0:00:10]} 19. Be3 {[%emt 0:00:04][%cal Oc4b6]} Bh3 {[%emt 0:02:45]} 20. Nb6 {[%emt 0:02:43]} (20. Nxb7 $1 $14 {keeps the upper hand.} Bxf1 21. Kxf1) 20... Rh5 $17 {[%emt 0:01:42]} 21. Rfe1 $2 {[%emt 0:03:56]} (21. Nbd7 $17 {keeps fighting.}) 21... Ne5 $19 {[%emt 0:01:23]} 22. Red1 $2 {[%emt 0:14:18]} (22. f4 Nf3+ 23. Kf2 Nxe1 24. Kxe1) 22... Nf3+ {[%emt 0:01:44]} (22... Bg4 23. Rd5 Nf3+ 24. Kf1 Rxh2 (24... Nxh2+ $2 25. Ke1 $19) 25. Ke2 $19) 23. Kh1 {[%emt 0:00:02]} g5 {[%emt 0:04:35]} (23... Bg4 $142 {[%csl Gf3][%cal Rh5h2]} 24. h4 Nxh4 25. gxh4 Bf3+ 26. Kh2 Be5+ 27. Kh3 g5) 24. Nd3 {[%emt 0:06:00]} (24. Nxb7 $2 Bc8 25. h4 Bxb7 $19) (24. Rxa5 $2 Bg4 25. h4 Nxh4 $19 (25... gxh4 $2 26. Ra4 $19)) 24... Bg4 {[%emt 0:09:56][%csl Gf3][%cal Rh5h2]} 25. h4 {[%emt 0:00:31]} gxh4 {[%emt 0:00:02]} 26. Nf4 {[%emt 0:00:06]} Rb5 {[%emt 0:00:10]} (26... hxg3+ 27. Nxh5 Bxh5 28. fxg3 $16 (28. Rxa5 Ng5 $19)) 27. gxh4 {[%emt 0:01:17]} Nxh4 {[%emt 0:03:36]} 28. Rg1 {[%emt 0:01:12]} Bf3+ {[%emt 0:00:58]} 29. Kh2 {[%emt 0:00:02]} Nf5 {[%emt 0:00:53][%cal Of5e3]} (29... Rxb3 30. Kg3 e5 31. Nfd5 Bxd5 32. Kxh4 $11) 30. Nc4 {[%emt 0:01:41]} e5 {[%emt 0:01:02]} ({Black should play} 30... Kh7 $19 31. Rxa5 Rxa5 32. Nxa5 b5) 31. Nh3 {[%emt 0:01:32]} (31. Ng2 $17) 31... Kh7 {[%emt 0:02:43] Threatens to win with ...Nxe3.} (31... Rxb3 32. Nxe5 Nxe3 (32... Rxb2 33. Bc1 $16) 33. Nxf3 Rxb2 34. Rxa5 $17) 32. Nd2 {[%emt 0:04:53] [#]} (32. Rxa5 $17 Rxa5 (32... Rxb3 33. Nxe5 Nxe3 34. Nxf3 $17) 33. Nxa5) 32... e4 {[%emt 0:01:52]} (32... Nxe3 $1 $19 {and Black stays clearly on top.} 33. Nxf3 Nf5) 33. Bf4 {[%emt 0:00:07]} (33. c4 $17 Nxe3 34. Rxg7+ Kxg7 35. cxb5 Ng4+ (35... Nc2 36. Rxa5 Rd8 37. Nxf3 $11) 36. Kg3) 33... Nh4 {[%emt 0:00:39]} 34. Bg3 {[%emt 0:01:10]} Rd8 {[%emt 0:01:56] White is weak on the light squares} 35. Nxe4 {[%emt 0:00:38]} Bxe4 {[%emt 0:00:40] This pair of bishops is nice.} 36. Bxh4 {[%emt 0:00:01]} Rd2 {[%emt 0:00:30]} 37. Ra4 {[%emt 0:00:51]} Bg6 {[%emt 0:00:46][%cal Ob5h5]} 38. Bg3 {[%emt 0:00:36]} (38. b4 $142) 38... Rxb2 {[%emt 0:00:15]} 39. c4 $2 {[%emt 0:00:33]} (39. b4) 39... Rh5 {[%emt 0:00:19][%cal Og6f5] ...Bf5! would now be deadly.} 40. Bc7 {[%emt 0:00:28]} Rxf2+ {[%emt 0:00:32]} 41. Rg2 {[%emt 0:00:31]} Rf1 {[%emt 0:00:51]} 42. Rxa5 {[%emt 0:00:22]} Rxa5 {[%emt 0:00:10]} 43. Bxa5 {[%emt 0:00:05]} Be5+ {[%emt 0:00:06] Weighted Error Value: White=0.85/Black=0.30.  Loses game:     	White=1     	---        Mistake:       	White=8     	Black=3      Inaccurate:     	White=3     	Black=4      OK:         	White=12    	Black=9      Best:        	White=1     	Black=4} 0-1

[Event "Satranc Arena IM Series-1 2024"]
[Site "Izmir"]
[Date "2024.03.21"]
[Round "8.2"]
[White "David, Alexandru-Vasile"]
[Black "Ozsakallioglu, Okan"]
[Result "1/2-1/2"]
[ECO "C01"]
[WhiteElo "2360"]
[BlackElo "2365"]
[Annotator "TA"]
[PlyCount "60"]
[EventDate "2024.03.18"]
[EventCountry "TUR"]
[SourceTitle "playchess.com"]
[Source "ChessBase"]
[SourceQuality "1"]
[TimeControl "5400+30"]

{[%evp 12,60,7,2,18,11,13,22,22,20,34,11,0,6,14,9,22,27,63,7,0,0,6,0,0,0,0,0,0,0,0,0,0,0,0,0,0,0,0,0,0,0,0,-6,15,0,0,-7,17,-5,0]} 1. e4 {[%emt 0:00:04]} e5 {[%emt 0:00:37]} 2. Nf3 {[%emt 0:00:05]} Nf6 {[%emt 0:00:04]} 3. Nxe5 {[%emt 0:00:07]} d6 {[%emt 0:00:08]} 4. Nf3 {[%emt 0:03:59]} Nxe4 {[%emt 0:00:20]} 5. h3 {[%emt 0:00:05]} d5 {[%emt 0:02:26]} 6. d3 {[%emt 0:01:24]} Nf6 {[%emt 0:01:35]} 7. d4 {[%emt 0:00:07]} Bf5 {[%emt 0:00:53]} 8. Bd3 {[%emt 0:01:08]} Bxd3 {[%emt 0:00:49]} 9. Qxd3 {[%emt 0:00:06]} c6 {[%emt 0:00:04] Wards off Qb5} 10. O-O {[%emt 0:01:28]} Be7 {[%emt 0:00:03]} 11. Bf4 {[%emt 0:08:42]} O-O {[%emt 0:00:10]} 12. Nbd2 {[%emt 0:00:05]} Bd6 {[%emt 0:00:13]} 13. Be5 {[%emt 0:06:53]} Na6 {[%emt 0:07:11]} 14. Rfe1 {[%emt 0:04:46]} Re8 {[%emt 0:01:07]} 15. Bxd6 {[%emt 0:01:20]} (15. Ng5 $14 Nb4 16. Qc3) 15... Qxd6 $11 {[%emt 0:00:06] The position is equal.} 16. c3 {[%emt 0:00:04]} Nd7 {[%emt 0:01:16]} 17. Rxe8+ {[%emt 0:01:52]} Rxe8 {[%emt 0:00:05]} 18. Re1 {[%emt 0:00:04]} Rxe1+ {[%emt 0:00:11]} 19. Nxe1 {[%emt 0:00:05]} Qe6 {[%emt 0:00:11]} 20. Kf1 {[%emt 0:00:27]} Nc7 {[%emt 0:00:08]} 21. Qe2 {[%emt 0:00:08]} f6 {[%emt 0:01:21]} 22. Qxe6+ {[%emt 0:00:07]} Nxe6 {[%emt 0:00:03][%mdl 4096] Endgame. KNN-KNN} 23. Nd3 {[%emt 0:00:13]} g5 {[%emt 0:00:13]} 24. g3 {[%emt 0:00:54]} Kf7 {[%emt 0:00:17]} 25. Ke2 {[%emt 0:00:07]} h5 {[%emt 0:00:08]} 26. Ke3 {[%emt 0:00:45]} Kg6 {[%emt 0:01:57]} 27. Nf3 {[%emt 0:02:12]} Ng7 {[%emt 0:01:05]} 28. Nd2 {[%emt 0:01:05]} Ne6 {[%emt 0:00:09]} 29. Nf3 {[%emt 0:00:06]} Ng7 {[%emt 0:00:04]} 30. Nd2 {[%emt 0:00:05]} Ne6 {[%emt 1:22:36] Weighted Error Value: White=0.07 (flawless) /Black=0.06 (flawless) .  Mistake:       	White=1     	---        Inaccurate:     	---       	Black=1      OK:         	White=9     	Black=6} 1/2-1/2

[Event "Satranc Arena IM Series-1 2024"]
[Site "Izmir"]
[Date "2024.03.21"]
[Round "8.3"]
[White "Kuru, Atilla"]
[Black "Baltag, Iulian"]
[Result "1/2-1/2"]
[ECO "B03"]
[WhiteElo "2246"]
[BlackElo "2412"]
[Annotator "TA"]
[PlyCount "95"]
[EventDate "2024.03.18"]
[EventCountry "TUR"]
[SourceTitle "playchess.com"]
[Source "ChessBase"]
[SourceQuality "1"]
[TimeControl "5400+30"]

{[%evp 15,95,48,66,-27,-17,-11,0,-31,0,2,0,3,12,-14,25,26,33,37,130,36,39,-24,0,-42,107,73,187,179,277,117,92,77,130,0,-2,-17,0,-3,-14,-35,-18,-24,-32,-52,-49,-56,-41,-41,-39,-40,-39,-53,0,0,0,0,0,0,0,0,0,0,0,-21,-8,-57,-46,-62,-62,-90,-90,-90,-79,-168,0,0,0,0,0,0,0,-140]} 1. e4 {[%emt 0:00:38][%cal Be2e4,Be4e5][%mdl 32]} Nf6 {[%emt 0:01:03]} 2. e5 {[%emt 0:00:20]} Nd5 {[%emt 0:00:04]} 3. d4 {[%emt 0:00:05]} d6 {[%emt 0:00:03]} 4. c4 {[%emt 0:01:11]} Nb6 {[%emt 0:01:05]} 5. f4 {[%emt 0:03:17]} dxe5 {[%emt 0:00:07]} 6. fxe5 {[%emt 0:00:04]} Bf5 {[%emt 0:00:24]} 7. Nc3 {[%emt 0:00:14]} e6 {[%emt 0:00:03]} 8. Nf3 {[%emt 0:00:21]} Bb4 {[%emt 0:00:09]} 9. c5 {[%emt 0:04:14]} (9. Bd3 $14) 9... Nd5 $11 {[%emt 0:02:39]} 10. Bd2 {[%emt 0:00:09]} O-O {[%emt 0:03:30]} 11. a3 {[%emt 0:00:46]} Nxc3 {[%emt 0:00:34]} 12. bxc3 {[%emt 0:00:25]} Ba5 {[%emt 0:00:10]} 13. Bc4 {[%emt 0:00:30]} b6 {[%emt 0:00:20]} 14. cxb6 {[%emt 0:01:13]} Bxb6 {[%emt 0:00:18]} 15. O-O $36 {[%emt 0:00:16][%mdl 2048] Weiss hat Initiative.} Nc6 {[%emt 0:11:19]} 16. Bg5 {[%emt 0:01:39]} Ne7 {[%emt 0:00:57]} (16... Qd7 $1 $14) 17. a4 {[%emt 0:01:20] Weiß steht aktiver.} ({Weiss braucht} 17. Nh4 $16) 17... Ba5 $1 $14 {[%emt 0:01:36]} 18. Qe1 {[%emt 0:04:31]} (18. Bd3 $14) 18... h6 $11 {[%emt 0:02:35]} 19. Qh4 {[%emt 0:07:03]} Re8 {[%emt 0:05:56] [#]} (19... hxg5 $15 {bleibt weiter vorne.} 20. Nxg5 Bxc3) 20. Bxh6 $1 $16 {[%emt 0:06:24]} Bg6 {[%emt 0:04:01]} (20... Ng6 $16 21. Qh5 (21. Qxd8 Rexd8 22. Be3 Bxc3 $11) 21... Bxc3 (21... gxh6 22. Qxh6 Bxc3 23. Rad1 $14)) 21. Bd2 $18 {[%emt 0:09:58]} Nf5 {[%emt 0:02:07]} (21... Rb8 {war einen Versuch wert.} 22. Ng5 Nf5) 22. Qf4 {[%emt 0:02:13]} (22. Qh3 $18) 22... c5 $16 {[%emt 0:01:31]} 23. g4 {[%emt 0:04:54]} (23. dxc5 $6 Qc7 $11) 23... Ne7 {[%emt 0:02:35] [#]} (23... Nh4 $142) 24. Nh4 {[%emt 0:00:22]} ({Bloß nicht} 24. dxc5 $6 Nd5 25. Qd4 Qc7 $11) (24. h4 $1 $16 {[%cal Rh4h5]} cxd4 25. cxd4 (25. h5 dxc3 26. Be3 Bxh5 $16)) 24... Rf8 $1 $11 {[%emt 0:00:26]} 25. Nf3 {[%emt 0:03:48]} Nd5 {[%emt 0:00:47]} 26. Bxd5 {[%emt 0:00:01]} Qxd5 {[%emt 0:00:20]} 27. c4 {[%emt 0:00:06]} Bxd2 {[%emt 0:00:52]} (27... Qxc4 $2 28. Bxa5 f5 29. Rac1 Qxa4 30. Rxc5 $18) 28. Qxd2 {[%emt 0:01:32]} Qxc4 {[%emt 0:02:07]} 29. Rac1 {[%emt 0:00:11]} Qxa4 {[%emt 0:00:18]} 30. Rxc5 {[%emt 0:00:07]} Rac8 {[%emt 0:01:33] ...Rxc5 wäre nun fies.} 31. Rfc1 {[%emt 0:03:44]} Rxc5 {[%emt 0:01:18]} 32. Rxc5 {[%emt 0:00:03]} Qb3 {[%emt 0:01:22]} 33. Kf2 {[%emt 0:03:13]} a6 {[%emt 0:06:48]} ({Besser ist} 33... Be4 $15 34. Qe3 Qb7) 34. Qc3 {[%emt 0:00:41]} Qxc3 {[%emt 0:01:38]} 35. Rxc3 {[%emt 0:00:02][%mdl 4096] Endspiel. KRB-KRN} Ra8 {[%emt 0:00:28]} 36. Ra3 {[%emt 0:00:37]} a5 {[%emt 0:00:08]} 37. Ke3 {[%emt 0:00:09]} a4 {[%emt 0:00:10]} 38. Nd2 {[%emt 0:02:46]} Bc2 {[%emt 0:00:27]} 39. Nc4 {[%emt 0:02:48]} Bb3 {[%emt 0:03:12]} 40. Nb2 {[%emt 0:02:38]} (40. Nd6 $11 {war vorzuziehen.}) 40... g5 $15 {[%emt 0:02:18]} 41. Nd3 {[%emt 0:00:53]} Kg7 $1 {[%emt 0:01:56]} 42. Nc5 {[%emt 0:00:54]} Rh8 {[%emt 0:04:45]} 43. Nxa4 {[%emt 0:00:17]} Bd1 {[%emt 0:01:06] Weiss muss nun ...Rh3+ beachten.} 44. Ra1 {[%emt 0:01:28]} (44. Kd2 $17 Bxg4 45. Rg3 Rxh2+ 46. Ke3) 44... Bxg4 $2 {[%emt 0:00:41]} (44... Rh3+ $19 45. Kd2 Rxh2+ (45... Bxg4 $2 46. Rg1 $19) 46. Kc3 (46. Kxd1 $2 {geht unter.} Rh1+ 47. Ke2 Rxa1 $19) 46... Bxg4) 45. Rg1 $11 {[%emt 0:00:08] Die Stellung ist ausgeglichen.} Rh4 {[%emt 0:00:39][%cal Og7h6]} 46. Nc3 {[%emt 0:00:18]} Rh3+ {[%emt 0:00:37]} 47. Rg3 {[%emt 0:00:23]} Rh4 {[%emt 0:36:58]} 48. Ke4 {[%emt 0:35:36] Gewichteter Fehlerwert: Weiß=0.31/Schwarz=0.22 (präzise) .  Gewinn verpasst:   	---       	Schwarz=1     Fehler:       	Weiß=7     	Schwarz=6     Ungenau:       	Weiß=4     	Schwarz=2     OK:         	Weiß=10    	Schwarz=10    Bester:       	Weiß=5     	Schwarz=6     Stark:        	Weiß=1     	Schwarz=3} (48. Rg1 $11) 1/2-1/2

[Event "Satranc Arena IM Series-1 2024"]
[Site "Izmir"]
[Date "2024.03.21"]
[Round "8.4"]
[White "Yalcinkaya, Efe"]
[Black "Gur, Ali"]
[Result "1/2-1/2"]
[ECO "B76"]
[WhiteElo "2085"]
[BlackElo "1848"]
[Annotator "NA RC"]
[PlyCount "49"]
[EventDate "2024.03.18"]
[EventCountry "TUR"]
[SourceTitle "playchess.com"]
[Source "ChessBase"]
[SourceQuality "1"]
[TimeControl "5400+30"]

1. e4 {[%emt 0:00:31]} c5 {[%emt 0:00:01]} 2. Nf3 {[%emt 0:00:13]} d6 {[%emt 0:00:06]} 3. d4 {[%emt 0:00:02]} cxd4 {[%emt 0:00:07]} 4. Nxd4 {[%emt 0:00:03]} Nf6 {[%emt 0:00:11]} 5. Nc3 {[%emt 0:00:03]} g6 {[%emt 0:00:00]} 6. Be3 {[%emt 0:00:07]} Bg7 {[%emt 0:00:09]} 7. f3 {[%emt 0:00:04]} O-O {[%emt 0:00:52]} 8. Qd2 {[%emt 0:00:04]} Nc6 {[%emt 0:00:12]} 9. g4 {[%emt 0:00:04]} Be6 {[%emt 0:02:58]} 10. Nxe6 {[%emt 0:00:37]} fxe6 {[%emt 0:00:07]} 11. O-O-O {[%emt 0:00:03]} Ne5 {[%emt 0:02:03]} 12. Be2 {[%emt 0:00:04]} a6 {[%emt 0:01:18]} 13. h4 {[%emt 0:02:33]} b5 {[%emt 0:01:08]} 14. h5 {[%emt 0:01:43]} Rc8 {[%emt 0:01:14]} 15. Bh6 {[%emt 0:02:57]} Qa5 {[%emt 0:04:22]} 16. Bxg7 {[%emt 0:00:52]} Kxg7 {[%emt 0:00:14]} 17. hxg6 {[%emt 1:29:00]} hxg6 {[%emt 0:00:43]} 18. f4 {[%emt 0:00:00]} Nexg4 {[%emt 0:09:32]} 19. Bxg4 {[%emt 0:00:00]} Nxg4 {[%emt 0:00:15]} 20. Rdg1 {[%emt 0:00:00]} b4 {[%emt 0:00:56]} 21. Nb1 {[%emt 0:00:00]} b3 {[%emt 0:04:47]} 22. Qxa5 {[%emt 0:00:00]} Rxc2+ {[%emt 0:00:07]} 23. Kd1 {[%emt 0:00:00]} Nf2+ {[%emt 0:00:08]} 24. Ke1 {[%emt 0:00:00]} Nd3+ {[%emt 0:00:07]} 25. Kd1 {[%emt 0:00:00]} 1/2-1/2

[Event "Satranc Arena IM Series-1 2024"]
[Site "Izmir"]
[Date "2024.03.22"]
[Round "9.2"]
[White "Gur, Ali"]
[Black "Gunduz, Umut Erdem"]
[Result "0-1"]
[ECO "B08"]
[WhiteElo "1848"]
[BlackElo "2314"]
[Annotator "TA"]
[PlyCount "120"]
[EventDate "2024.03.22"]
[EventCountry "TUR"]
[SourceTitle "playchess.com"]
[Source "ChessBase"]
[SourceQuality "1"]
[TimeControl "5400+30"]

{[%evp 10,120,29,0,34,27,29,33,36,0,8,-5,21,0,0,8,0,0,0,0,0,0,0,0,0,-7,19,-14,-18,-35,-28,-110,-113,-114,-121,-122,-127,-111,-120,-118,-126,-124,-117,-131,-122,-126,-136,-137,-112,-110,-93,-85,-43,-99,-91,-145,-153,-158,-160,-176,-174,-168,-164,-168,-162,-160,0,-208,-221,-273,-275,-254,-246,-217,-202,-227,-211,-180,-196,-229,-217,-237,-229,-339,-339,-329,-334,-500,-509,-756,-684,-918,-779,-856,-818,-861,-833,-1923,-1818,-1548,-1502,-29984,-29985,-29989,-29990,-29990,-29991,-29992,-29993,-29995,-29996,-29998,-2376]} 1. e4 {[%emt 0:00:03]} g6 {[%emt 0:00:01]} 2. d4 {[%emt 0:00:08]} Bg7 {[%emt 0:00:02]} 3. Nc3 {[%emt 0:00:14]} d6 {[%emt 0:00:06]} 4. Nf3 {[%emt 0:00:37]} Nf6 {[%emt 0:00:28]} 5. Bf4 {[%emt 0:02:16]} O-O {[%emt 0:04:21]} 6. Be2 {[%emt 0:00:51]} a6 {[%emt 0:01:56]} 7. O-O {[%emt 0:01:49]} Nc6 {[%emt 0:06:09]} 8. Re1 {[%emt 0:01:52]} b5 {[%emt 0:03:29] White is slightly better.} 9. a3 {[%emt 0:01:42]} Bb7 {[%emt 0:04:16]} 10. h3 {[%emt 0:01:36]} Nd7 {[%emt 0:03:19][%cal Oc6d4]} 11. Qd2 {[%emt 0:07:32]} Nxd4 {[%emt 0:06:40]} 12. Nxd4 {[%emt 0:00:13]} Bxd4 {[%emt 0:00:02]} 13. Qxd4 {[%emt 0:00:21]} e5 {[%emt 0:00:01]} 14. Qe3 {[%emt 0:00:50]} exf4 {[%emt 0:00:02]} 15. Qxf4 {[%emt 0:00:02]} Re8 {[%emt 0:01:51]} 16. Bd3 {[%emt 0:05:42]} Re5 {[%emt 0:03:33]} 17. Qd2 {[%emt 0:01:31]} Qe7 {[%emt 0:04:54]} 18. Re3 {[%emt 0:14:48]} Re8 {[%emt 0:01:13]} 19. f4 {[%emt 0:02:29]} Re6 {[%emt 0:00:28][%cal Od6d5] Threatening ...d5!} 20. Rg3 {[%emt 0:04:32]} (20. Rf3 $11 {keeps the balance.}) 20... Nf6 $17 {[%emt 0:06:16]} 21. f5 {[%emt 0:01:34]} Re5 {[%emt 0:00:01]} 22. fxg6 {[%emt 0:00:49]} hxg6 {[%emt 0:03:30]} (22... Nxe4 23. gxf7+ Kxf7 24. Nxe4 $18) 23. Rf1 {[%emt 0:04:19]} Bxe4 {[%emt 0:01:32]} 24. Bxe4 {[%emt 0:02:48]} Nxe4 {[%emt 0:00:07]} 25. Nxe4 {[%emt 0:00:02]} Rxe4 {[%emt 0:00:34]} 26. Qd5 {[%emt 0:03:08]} Kg7 {[%emt 0:02:42]} 27. Rgf3 {[%emt 0:00:24]} f5 {[%emt 0:00:20]} 28. Rc3 {[%emt 0:03:03]} Re1 {[%emt 0:02:37]} 29. Qd4+ {[%emt 0:04:08]} Kh7 {[%emt 0:00:02]} 30. Rxe1 {[%emt 0:00:11]} Qxe1+ {[%emt 0:00:02][%mdl 4096] Endgame. KQR-KQR} 31. Kh2 {[%emt 0:00:07]} Re7 $36 {[%emt 0:01:54][%mdl 2048] White is under strong pressure. Black is more active.} 32. Rg3 {[%emt 0:01:05]} ({White has to play} 32. Rc6) 32... Qe5 {[%emt 0:00:46]} 33. Qh4+ {[%emt 0:00:01]} Kg7 {[%emt 0:00:01]} 34. Qg5 {[%emt 0:00:35]} Qf6 {[%emt 0:00:19] ...Qxg5 is the strong threat.} 35. Qd2 {[%emt 0:00:20]} c5 {[%emt 0:07:05]} 36. b3 {[%emt 0:02:37]} Re4 {[%emt 0:01:06]} 37. Qd5 {[%emt 0:01:01]} Re7 $2 {[%emt 0:06:45]} (37... Re5 $17 38. Qb7+ Kh6) 38. c3 $2 {[%emt 0:03:21]} (38. Qd2 $1 $11 {and White is okay.}) 38... Qe5 $19 {[%emt 0:00:38]} 39. Qa8 {[%emt 0:00:27]} Qf4 {[%emt 0:02:41]} 40. Qf3 {[%emt 0:02:22] Dodges Re3} Qxf3 {[%emt 0:08:15]} 41. Rxf3 {[%emt 0:00:02] KR-KR} Kf6 {[%emt 0:00:13]} 42. Rd3 {[%emt 0:00:25]} Ke6 {[%emt 0:00:38]} 43. Kg3 {[%emt 0:00:46]} g5 {[%emt 0:01:52]} 44. c4 {[%emt 0:04:16]} Rd7 {[%emt 0:02:20]} 45. Re3+ {[%emt 0:01:50]} Kf6 {[%emt 0:00:01] [#] aiming for ...f4+.} 46. Rd3 {[%emt 0:01:50]} (46. Kf2 $142) 46... bxc4 {[%emt 0:00:32]} 47. bxc4 {[%emt 0:00:02]} d5 {[%emt 0:00:09] White must now prevent ...d4.} 48. Kf3 {[%emt 0:02:18]} (48. Kf2 {keeps fighting.}) 48... d4 {[%emt 0:01:56]} 49. g4 {[%emt 0:00:52]} Rb7 {[%emt 0:00:37]} 50. Kg3 {[%emt 0:00:32]} Rb2 {[%emt 0:00:26]} 51. gxf5 {[%emt 0:00:43]} Rc2 {[%emt 0:01:09][%cal Oc2c3] [#] Hoping for ...Rc3!} 52. Kg4 {[%emt 0:00:30]} Rxc4 {[%emt 0:01:13]} 53. Rd2 {[%emt 0:00:13]} d3+ {[%emt 0:00:28]} 54. Kg3 {[%emt 0:00:03]} Rd4 {[%emt 0:00:09][%cal Oc5c4] ( -> ...c4!)} 55. h4 {[%emt 0:00:24]} gxh4+ {[%emt 0:00:06] Black mates.} 56. Kh3 {[%emt 0:00:05]} c4 {[%emt 0:00:08]} 57. a4 {[%emt 0:00:42]} c3 {[%emt 0:00:05]} 58. Ra2 {[%emt 0:00:18]} d2 {[%emt 0:00:06]} 59. a5 {[%emt 0:00:02]} d1=Q {[%emt 0:00:22]} 60. Rd2 {[%emt 0:00:01]} Qg4+ {[%emt 0:00:32] Weighted Error Value: White=0.49/Black=0.09 (flawless) .  Loses game:     	White=1     	---        Mistake:       	White=4     	Black=1      Inaccurate:     	White=5     	Black=2      OK:         	White=9     	Black=24     Best:        	White=1     	Black=4} (60... Qh1+ $142 61. Rh2 Qf3#) 0-1